[Event "44th Chess Olympiad Women 2022"]
[Site "Chennai"]
[Date "2022.08.08"]
[Round "10.25"]
[White "Kocyigit, Buse Naz"]
[Black "Miranda Vargas, Analia Karen"]
[Result "1/2-1/2"]
[WhiteElo "1991"]
[BlackElo "1723"]
[Annotator "NA RC"]
[PlyCount "105"]
[EventDate "2022.??.??"]
[TimeControl "60"]

1. d4 {[%emt 0:00:34]} Nf6 {[%emt 0:04:29]} 2. Nf3 {[%emt 0:00:08]} g6 {
[%emt 0:00:06]} 3. Nc3 {[%emt 0:02:28]} d5 {[%emt 0:00:19]} 4. Bf4 {[%emt 0:00:
00]} Bg7 {[%emt 0:00:07]} 5. Qd2 {[%emt 0:00:23]} Ne4 {[%emt 0:00:44]} 6. Nxe4
{[%emt 0:00:50]} dxe4 {[%emt 0:00:06]} 7. Ne5 {[%emt 0:00:24]} O-O {[%emt 0:00:
00]} 8. O-O-O {[%emt 0:01:25]} Qd5 {[%emt 0:01:22]} 9. b3 {[%emt 0:12:30]} b5 {
[%emt 0:03:09]} 10. f3 {[%emt 0:09:42]} a5 {[%emt 0:19:56]} 11. fxe4 {[%emt 0:
00:00]} Qxe4 {[%emt 0:00:19]} 12. e3 {[%emt 0:00:59]} Qb7 {[%emt 0:11:17]} 13.
h4 {[%emt 0:11:22]} a4 {[%emt 0:06:06]} 14. h5 {[%emt 0:14:53]} axb3 {[%emt 0:
00:00]} 15. cxb3 {[%emt 0:00:31]} Bf5 {[%emt 0:04:03]} 16. hxg6 {[%emt 0:02:54]
} fxg6 {[%emt 0:02:33]} 17. Kb2 {[%emt 0:22:00]} Qa7 {[%emt 0:11:15]} 18. a4 {
[%emt 0:05:11]} Bxe5 {[%emt 0:13:50]} 19. Bxe5 {[%emt 0:00:54]} bxa4 {[%emt 0:
00:00]} 20. Bc4+ {[%emt 0:00:14]} e6 {[%emt 0:00:09]} 21. Ra1 {[%emt 0:05:07]}
Nc6 {[%emt 0:01:02]} 22. Rxa4 {[%emt 0:01:16]} Qb6 {[%emt 0:00:24]} 23. Rxa8 {
[%emt 0:00:06]} Rxa8 {[%emt 0:00:01]} 24. Ra1 {[%emt 0:03:30]} Rxa1 {[%emt 0:
00:00]} 25. Kxa1 {[%emt 0:00:01]} Nb4 {[%emt 0:00:10]} 26. e4 {[%emt 0:01:16]}
Qa5+ {[%emt 0:05:50]} 27. Kb2 {[%emt 0:00:11]} Qa2+ {[%emt 0:02:23]} 28. Kc3 {
[%emt 0:00:36]} Qxd2+ {[%emt 0:00:31]} 29. Kxd2 {[%emt 0:00:02]} Bxe4 {[%emt 0:
00:00]} 30. Bxe6+ {[%emt 0:00:09]} Kf8 {[%emt 0:00:05]} 31. Bxc7 {[%emt 0:00:
00]} Ke7 {[%emt 0:00:58]} 32. Bh3 {[%emt 0:00:30]} Nd5 {[%emt 0:00:34]} 33. Be5
{[%emt 0:00:24]} h5 {[%emt 0:01:50]} 34. g3 {[%emt 0:00:53]} g5 {[%emt 0:00:24]
} 35. Bf1 {[%emt 0:00:53]} Ke6 {[%emt 0:01:01]} 36. Bd3 {[%emt 0:00:54]} Kf5 {
[%emt 0:01:44]} 37. Be2 {[%emt 0:00:19]} h4 {[%emt 0:00:49]} 38. gxh4 {[%emt 0:
00:00]} gxh4 {[%emt 0:00:01]} 39. Bd3 {[%emt 0:00:44]} h3 {[%emt 0:00:23]} 40.
Bh2 {[%emt 0:00:35]} Nb4 {[%emt 0:01:28]} 41. Be2 {[%emt 0:07:00]} Nd5 {
[%emt 0:03:13]} 42. Bd1 {[%emt 0:10:17]} Bb1 {[%emt 0:02:34]} 43. Bf3 {[%emt 0:
00:00]} Be4 {[%emt 0:01:12]} 44. Ke2 {[%emt 0:02:44]} Nb4 {[%emt 0:03:51]} 45.
Kf2 {[%emt 0:02:05]} Nc2 {[%emt 0:02:17]} 46. d5 {[%emt 0:01:53]} Bxf3 {
[%emt 0:00:16]} 47. Kxf3 {[%emt 0:00:11]} Nd4+ {[%emt 0:00:05]} 48. Ke3 {
[%emt 0:00:43]} Nxb3 {[%emt 0:00:11]} 49. Kd3 {[%emt 0:00:54]} Nc5+ {[%emt 0:
00:00]} 50. Kd4 {[%emt 0:01:28]} Nd7 {[%emt 0:01:12]} 51. Kd3 {[%emt 0:01:52]}
Nf6 {[%emt 0:00:15]} 52. d6 {[%emt 0:00:49]} Ke6 {[%emt 0:00:06]} 53. Ke2 {
[%emt 0:00:38]} 1/2-1/2

[Event "44th Chess Olympiad Women 2022"]
[Site "Chennai"]
[Date "2022.08.08"]
[Round "10.25"]
[White "Penafiel Mendoza, Josselyne"]
[Black "Onur, Cigdem"]
[Result "1-0"]
[WhiteElo "1804"]
[BlackElo "2000"]
[Annotator "NA RC"]
[PlyCount "65"]
[EventDate "2022.??.??"]
[TimeControl "60"]

1. d4 {[%emt 0:00:03]} d5 {[%emt 0:00:33]} 2. c4 {[%emt 0:00:06]} e6 {[%emt 0:
00:00]} 3. Nc3 {[%emt 0:00:09]} c6 {[%emt 0:00:03]} 4. cxd5 {[%emt 0:01:11]}
exd5 {[%emt 0:00:08]} 5. Qc2 {[%emt 0:00:23]} Nf6 {[%emt 0:02:51]} 6. Bg5 {
[%emt 0:00:08]} Be7 {[%emt 0:00:57]} 7. e3 {[%emt 0:00:21]} Nbd7 {[%emt 0:00:
00]} 8. Nf3 {[%emt 0:00:51]} h6 {[%emt 0:09:54]} 9. Bf4 {[%emt 0:08:19]} Nb6 {
[%emt 0:11:34]} 10. h3 {[%emt 0:04:37]} Be6 {[%emt 0:01:32]} 11. Bd3 {[%emt 0:
00:00]} Bd6 {[%emt 0:05:21]} 12. Bxd6 {[%emt 0:03:56]} Qxd6 {[%emt 0:00:04]}
13. Ne5 {[%emt 0:01:35]} Nfd7 {[%emt 0:09:25]} 14. f4 {[%emt 0:01:16]} Nxe5 {
[%emt 0:10:10]} 15. fxe5 {[%emt 0:02:45]} Qe7 {[%emt 0:06:07]} 16. O-O {
[%emt 0:04:16]} O-O {[%emt 0:05:00]} 17. Ne2 {[%emt 0:02:27]} Nc4 {[%emt 0:00:
00]} 18. Rf3 {[%emt 0:02:42]} Qb4 {[%emt 0:02:31]} 19. b3 {[%emt 0:01:40]} Na3
{[%emt 0:01:52]} 20. Qc3 {[%emt 0:09:59]} a5 {[%emt 0:09:08]} 21. Raf1 {
[%emt 0:02:30]} Qxc3 {[%emt 0:03:45]} 22. Nxc3 {[%emt 0:00:01]} b5 {[%emt 0:00:
00]} 23. Rg3 {[%emt 0:03:18]} Rab8 {[%emt 0:00:46]} 24. e4 {[%emt 0:05:47]}
Rfc8 {[%emt 0:02:22]} 25. Rc1 {[%emt 0:02:18]} c5 {[%emt 0:00:00]} 26. Nxd5 {
[%emt 0:00:12]} Bxd5 {[%emt 0:00:14]} 27. exd5 {[%emt 0:00:04]} cxd4 {[%emt 0:
00:00]} 28. Rxc8+ {[%emt 0:00:29]} Rxc8 {[%emt 0:00:02]} 29. d6 {[%emt 0:00:15]
} Kf8 {[%emt 0:01:24]} 30. Rg4 {[%emt 0:00:46]} f6 {[%emt 0:00:40]} 31. e6 {
[%emt 0:00:42]} Rc5 {[%emt 0:00:29]} 32. e7+ {[%emt 0:00:08]} Kf7 {[%emt 0:00:
00]} 33. Bg6+ {[%emt 0:00:00]} 1-0

[Event "44th Chess Olympiad Women 2022"]
[Site "Chennai"]
[Date "2022.08.08"]
[Round "10.26"]
[White "Jannatul, Ferdous"]
[Black "Moaataz, Ayah"]
[Result "1-0"]
[WhiteElo "1815"]
[BlackElo "2119"]
[Annotator "NA RC"]
[PlyCount "119"]
[EventDate "2022.??.??"]
[TimeControl "60"]

1. e4 {[%emt 0:00:18]} c6 {[%emt 0:00:04]} 2. d4 {[%emt 0:00:07]} d5 {[%emt 0:
00:00]} 3. Nc3 {[%emt 0:00:58]} dxe4 {[%emt 0:00:05]} 4. Nxe4 {[%emt 0:00:09]}
Nd7 {[%emt 0:00:09]} 5. Nf3 {[%emt 0:02:08]} Ngf6 {[%emt 0:00:07]} 6. Nxf6+ {
[%emt 0:00:03]} Nxf6 {[%emt 0:00:07]} 7. h3 {[%emt 0:00:40]} Bf5 {[%emt 0:00:
00]} 8. Bd3 {[%emt 0:00:15]} Bxd3 {[%emt 0:03:04]} 9. Qxd3 {[%emt 0:00:08]} e6
{[%emt 0:00:02]} 10. O-O {[%emt 0:06:55]} Bd6 {[%emt 0:00:57]} 11. Bg5 {
[%emt 0:03:10]} h6 {[%emt 0:02:35]} 12. Bh4 {[%emt 0:00:18]} g5 {[%emt 0:15:03]
} 13. Bg3 {[%emt 0:00:05]} g4 {[%emt 0:02:06]} 14. Ne5 {[%emt 0:11:41]} h5 {
[%emt 0:08:05]} 15. h4 {[%emt 0:05:08]} Qe7 {[%emt 0:05:56]} 16. Ng6 {[%emt 0:
00:00]} fxg6 {[%emt 0:01:38]} 17. Bxd6 {[%emt 0:00:10]} Qxd6 {[%emt 0:17:45]}
18. Qxg6+ {[%emt 0:00:20]} Kd7 {[%emt 0:00:09]} 19. Qxf6 {[%emt 0:00:24]} Raf8
{[%emt 0:03:51]} 20. Qe5 {[%emt 0:12:17]} Rh7 {[%emt 0:00:42]} 21. f4 {[%emt 0:
00:00]} g3 {[%emt 0:10:08]} 22. Rf3 {[%emt 0:09:50]} Rf5 {[%emt 0:00:33]} 23.
Qxd6+ {[%emt 0:09:30]} Kxd6 {[%emt 0:00:04]} 24. c3 {[%emt 0:00:06]} Rg7 {
[%emt 0:00:45]} 25. Re1 {[%emt 0:01:23]} Rg4 {[%emt 0:06:33]} 26. Re4 {[%emt 0:
00:00]} a5 {[%emt 0:00:57]} 27. Rfe3 {[%emt 0:06:25]} Rfxf4 {[%emt 0:02:56]}
28. Rxe6+ {[%emt 0:02:23]} Kc7 {[%emt 0:00:11]} 29. R6e5 {[%emt 0:04:13]} b5 {
[%emt 0:06:03]} 30. Rxh5 {[%emt 0:00:43]} a4 {[%emt 0:06:35]} 31. a3 {[%emt 0:
00:00]} Kd6 {[%emt 0:01:37]} 32. Rh6+ {[%emt 0:00:19]} Kd5 {[%emt 0:00:46]} 33.
h5 {[%emt 0:00:25]} Re4 {[%emt 0:00:22]} 34. Rxe4 {[%emt 0:00:52]} Rxe4 {
[%emt 0:00:05]} 35. Kf1 {[%emt 0:00:31]} Rf4+ {[%emt 0:00:12]} 36. Kg1 {
[%emt 0:00:30]} Rf2 {[%emt 0:01:21]} 37. Rg6 {[%emt 0:00:08]} Rf5 {[%emt 0:00:
00]} 38. Rxg3 {[%emt 0:01:00]} Rxh5 {[%emt 0:00:07]} 39. Rg6 {[%emt 0:00:06]}
c5 {[%emt 0:00:29]} 40. g4 {[%emt 0:00:30]} Rh4 {[%emt 0:00:59]} 41. Rg5+ {
[%emt 0:30:07]} Kc4 {[%emt 0:31:29]} 42. Rxc5+ {[%emt 0:00:00]} Kd3 {[%emt 0:
00:00]} 43. g5 {[%emt 0:00:00]} b4 {[%emt 0:00:00]} 44. axb4 {[%emt 0:00:00]}
Kc2 {[%emt 0:00:00]} 45. b5 {[%emt 0:00:00]} Kxb2 {[%emt 0:00:00]} 46. b6 {
[%emt 0:00:00]} Rh8 {[%emt 0:00:00]} 47. c4 {[%emt 0:00:00]} Kb3 {[%emt 0:00:
00]} 48. Rc7 {[%emt 0:00:00]} a3 {[%emt 0:00:00]} 49. c5 {[%emt 0:00:00]} Kc4 {
[%emt 0:00:00]} 50. Ra7 {[%emt 0:00:31]} Kxd4 {[%emt 0:00:00]} 51. b7 {[%emt 0:
00:00]} Kxc5 {[%emt 0:00:00]} 52. Rxa3 {[%emt 0:00:39]} Rb8 {[%emt 0:00:00]}
53. Rb3 {[%emt 0:00:05]} Kd5 {[%emt 0:00:00]} 54. Kg2 {[%emt 0:00:24]} Ke6 {
[%emt 0:00:00]} 55. Kf3 {[%emt 0:00:25]} Kf5 {[%emt 0:00:00]} 56. Rb5+ {
[%emt 0:00:02]} Kg6 {[%emt 0:00:00]} 57. Ke4 {[%emt 0:00:10]} Kf7 {[%emt 0:00:
00]} 58. Kf5 {[%emt 0:00:21]} Ke7 {[%emt 0:01:27]} 59. g6 {[%emt 0:00:40]} Kf8
{[%emt 0:00:10]} 60. Ke4 {[%emt 0:02:39]} 1-0

[Event "44th Chess Olympiad Women 2022"]
[Site "Chennai"]
[Date "2022.08.08"]
[Round "10.26"]
[White "Mona, Khaled"]
[Black "Noshin, Anjum"]
[Result "1-0"]
[WhiteElo "2127"]
[BlackElo "2027"]
[Annotator "NA RC"]
[PlyCount "87"]
[EventDate "2022.??.??"]
[TimeControl "60"]

1. d4 {[%emt 0:00:01]} d5 {[%emt 0:00:10]} 2. Nf3 {[%emt 0:00:19]} Nf6 {
[%emt 0:00:09]} 3. e3 {[%emt 0:00:07]} e6 {[%emt 0:00:07]} 4. Bd3 {[%emt 0:00:
00]} c5 {[%emt 0:00:12]} 5. c3 {[%emt 0:00:05]} Nc6 {[%emt 0:00:03]} 6. O-O {
[%emt 0:00:22]} Bd6 {[%emt 0:00:17]} 7. Nbd2 {[%emt 0:00:16]} O-O {[%emt 0:00:
00]} 8. Qe2 {[%emt 0:00:05]} e5 {[%emt 0:02:27]} 9. dxc5 {[%emt 0:00:43]} Bxc5
{[%emt 0:00:08]} 10. e4 {[%emt 0:00:06]} d4 {[%emt 0:08:53]} 11. Nb3 {[%emt 0:
00:00]} Bb6 {[%emt 0:01:32]} 12. cxd4 {[%emt 0:00:08]} exd4 {[%emt 0:22:09]}
13. e5 {[%emt 0:01:18]} Re8 {[%emt 0:00:59]} 14. Bg5 {[%emt 0:00:22]} Bg4 {
[%emt 0:01:01]} 15. Bxf6 {[%emt 0:05:10]} gxf6 {[%emt 0:01:01]} 16. Qe4 {
[%emt 0:00:14]} f5 {[%emt 0:01:46]} 17. Qf4 {[%emt 0:00:17]} Bxf3 {[%emt 0:00:
00]} 18. Qxf3 {[%emt 0:00:51]} Nxe5 {[%emt 0:00:40]} 19. Qg3+ {[%emt 0:00:06]}
Ng6 {[%emt 0:01:53]} 20. Bxf5 {[%emt 0:01:57]} Qf6 {[%emt 0:08:05]} 21. Bd3 {
[%emt 0:00:56]} Re5 {[%emt 0:11:05]} 22. Nd2 {[%emt 0:05:47]} Qg5 {[%emt 0:00:
00]} 23. Ne4 {[%emt 0:24:50]} Qxg3 {[%emt 0:00:07]} 24. hxg3 {[%emt 0:00:15]}
Kg7 {[%emt 0:04:15]} 25. Rfd1 {[%emt 0:10:26]} Rd5 {[%emt 0:01:47]} 26. f4 {
[%emt 0:00:37]} Ne7 {[%emt 0:06:19]} 27. Kf2 {[%emt 0:01:39]} Nf5 {[%emt 0:00:
00]} 28. Rh1 {[%emt 0:03:18]} Ne3 {[%emt 0:01:54]} 29. Rh4 {[%emt 0:03:14]} Rh8
{[%emt 0:02:13]} 30. g4 {[%emt 0:00:00]} h5 {[%emt 0:02:16]} 31. g5 {[%emt 0:
00:00]} Nf5 {[%emt 0:00:28]} 32. Rh3 {[%emt 0:00:36]} h4 {[%emt 0:00:31]} 33.
Nf6 {[%emt 0:01:17]} Ne3 {[%emt 0:00:38]} 34. Nxd5 {[%emt 0:01:10]} Nxd5 {
[%emt 0:00:06]} 35. Rf3 {[%emt 0:01:55]} Bc7 {[%emt 0:00:44]} 36. f5 {[%emt 0:
00:00]} Bg3+ {[%emt 0:00:14]} 37. Kg1 {[%emt 0:03:51]} Re8 {[%emt 0:00:27]} 38.
f6+ {[%emt 0:02:33]} Kf8 {[%emt 0:00:25]} 39. Rc1 {[%emt 0:00:19]} Nb4 {
[%emt 0:00:50]} 40. g6 {[%emt 0:02:39]} Nxd3 {[%emt 0:00:46]} 41. g7+ {[%emt 0:
00:00]} Kg8 {[%emt 0:30:08]} 42. Rxd3 {[%emt 0:00:05]} Bf4 {[%emt 0:00:00]} 43.
Rc5 {[%emt 0:00:00]} Bg3 {[%emt 0:00:00]} 44. Rd1 {[%emt 0:00:00]} 1-0

[Event "44th Chess Olympiad Women 2022"]
[Site "Chennai"]
[Date "2022.08.08"]
[Round "10.26"]
[White "Sultana, Sharmin Shirin"]
[Black "Wafa, Shrook"]
[Result "1/2-1/2"]
[WhiteElo "1995"]
[BlackElo "2141"]
[Annotator "NA RC"]
[PlyCount "158"]
[EventDate "2022.??.??"]
[TimeControl "60"]

1. d4 {[%emt 0:00:04]} d5 {[%emt 0:00:14]} 2. Nf3 {[%emt 0:01:13]} Nf6 {
[%emt 0:00:17]} 3. e3 {[%emt 0:00:24]} e6 {[%emt 0:00:25]} 4. Bd3 {[%emt 0:00:
00]} c5 {[%emt 0:00:43]} 5. O-O {[%emt 0:01:45]} c4 {[%emt 0:01:29]} 6. Be2 {
[%emt 0:00:06]} Nc6 {[%emt 0:00:11]} 7. b3 {[%emt 0:00:33]} cxb3 {[%emt 0:00:
00]} 8. axb3 {[%emt 0:09:31]} Bd6 {[%emt 0:00:35]} 9. Ba3 {[%emt 0:02:04]} O-O
{[%emt 0:00:48]} 10. c4 {[%emt 0:00:44]} Re8 {[%emt 0:01:31]} 11. Nc3 {[%emt 0:
00:00]} Bb8 {[%emt 0:04:59]} 12. Qc2 {[%emt 0:07:09]} e5 {[%emt 0:06:08]} 13.
cxd5 {[%emt 0:06:39]} Nxd5 {[%emt 0:06:17]} 14. Nxd5 {[%emt 0:06:38]} Qxd5 {
[%emt 0:00:20]} 15. e4 {[%emt 0:08:14]} Qd8 {[%emt 0:10:49]} 16. d5 {[%emt 0:
00:00]} Ne7 {[%emt 0:08:19]} 17. Rfd1 {[%emt 0:04:02]} Bd6 {[%emt 0:02:30]} 18.
Nd2 {[%emt 0:07:57]} Ng6 {[%emt 0:08:42]} 19. Bxd6 {[%emt 0:01:46]} Qxd6 {
[%emt 0:00:09]} 20. Nc4 {[%emt 0:00:07]} Qf6 {[%emt 0:00:42]} 21. g3 {[%emt 0:
00:00]} Bd7 {[%emt 0:00:57]} 22. Qd2 {[%emt 0:04:21]} Rec8 {[%emt 0:05:31]} 23.
Rdc1 {[%emt 0:01:37]} h6 {[%emt 0:01:38]} 24. Na5 {[%emt 0:04:43]} Qb6 {
[%emt 0:12:23]} 25. b4 {[%emt 0:00:16]} Ne7 {[%emt 0:02:26]} 26. Qb2 {[%emt 0:
00:00]} f6 {[%emt 0:05:00]} 27. Qd2 {[%emt 0:05:26]} Rxc1+ {[%emt 0:02:27]} 28.
Rxc1 {[%emt 0:00:01]} Rc8 {[%emt 0:00:20]} 29. Bc4 {[%emt 0:01:09]} Kh7 {
[%emt 0:01:41]} 30. Ra1 {[%emt 0:01:23]} Rd8 {[%emt 0:03:03]} 31. Bb3 {[%emt 0:
00:00]} Bb5 {[%emt 0:02:18]} 32. Rc1 {[%emt 0:00:32]} Nc8 {[%emt 0:01:14]} 33.
Kg2 {[%emt 0:00:39]} Nd6 {[%emt 0:00:14]} 34. f3 {[%emt 0:00:24]} Rd7 {[%emt 0:
00:00]} 35. Rc3 {[%emt 0:02:16]} Qa6 {[%emt 0:01:40]} 36. Qc1 {[%emt 0:00:42]}
Qb6 {[%emt 0:03:47]} 37. Bd1 {[%emt 0:00:06]} Qd4 {[%emt 0:00:40]} 38. Nb3 {
[%emt 0:00:43]} Qxb4 {[%emt 0:00:36]} 39. Nd2 {[%emt 0:01:32]} Qa5 {[%emt 0:00:
00]} 40. Rc5 {[%emt 0:00:30]} b6 {[%emt 0:02:01]} 41. Rc3 {[%emt 0:01:18]} Qa6
{[%emt 0:01:58]} 42. f4 {[%emt 0:09:22]} Qb7 {[%emt 0:01:31]} 43. Bf3 {[%emt 0:
00:00]} a5 {[%emt 0:01:02]} 44. Qb2 {[%emt 0:04:18]} a4 {[%emt 0:02:32]} 45.
fxe5 {[%emt 0:00:31]} fxe5 {[%emt 0:00:09]} 46. Bg4 {[%emt 0:02:00]} Re7 {
[%emt 0:15:22]} 47. Qb4 {[%emt 0:01:19]} Qb8 {[%emt 0:03:13]} 48. Nf3 {[%emt 0:
00:00]} Be8 {[%emt 0:02:42]} 49. Be6 {[%emt 0:00:53]} Rb7 {[%emt 0:03:14]} 50.
Nxe5 {[%emt 0:00:31]} Bf7 {[%emt 0:03:16]} 51. Nd7 {[%emt 0:01:04]} Rxd7 {
[%emt 0:00:49]} 52. Bxd7 {[%emt 0:00:02]} Bg6 {[%emt 0:00:17]} 53. Re3 {
[%emt 0:01:02]} b5 {[%emt 0:00:41]} 54. e5 {[%emt 0:00:41]} Nc4 {[%emt 0:00:13]
} 55. Re1 {[%emt 0:00:37]} Nxe5 {[%emt 0:00:34]} 56. Qxb5 {[%emt 0:00:17]} Qd6
{[%emt 0:00:28]} 57. Be6 {[%emt 0:00:14]} a3 {[%emt 0:00:17]} 58. Ra1 {[%emt 0:
00:00]} Be4+ {[%emt 0:00:21]} 59. Kh3 {[%emt 0:02:17]} Nf3 {[%emt 0:00:51]} 60.
Qe8 {[%emt 0:02:50]} Ng5+ {[%emt 0:01:22]} 61. Kh4 {[%emt 0:00:06]} Nf3+ {
[%emt 0:00:42]} 62. Kh3 {[%emt 0:00:07]} Ng5+ {[%emt 0:00:14]} 63. Kh4 {
[%emt 0:00:06]} Nxe6 {[%emt 0:01:08]} 64. Qxe6 {[%emt 0:00:32]} Qd8+ {[%emt 0:
00:00]} 65. Kh3 {[%emt 0:00:58]} Bxd5 {[%emt 0:00:18]} 66. Qf5+ {[%emt 0:00:46]
} Kh8 {[%emt 0:00:19]} 67. Rxa3 {[%emt 0:00:51]} Qe7 {[%emt 0:00:49]} 68. Ra6 {
[%emt 0:01:45]} Bg8 {[%emt 0:00:47]} 69. Ra8 {[%emt 0:00:26]} Qb7 {[%emt 0:00:
00]} 70. Re8 {[%emt 0:00:29]} Qb3 {[%emt 0:00:25]} 71. Qe4 {[%emt 0:00:30]} Qf7
{[%emt 0:00:11]} 72. Kg2 {[%emt 0:00:30]} Qa2+ {[%emt 0:00:05]} 73. Kh3 {
[%emt 0:00:18]} Qf7 {[%emt 0:00:09]} 74. Kg2 {[%emt 0:00:30]} Qa2+ {[%emt 0:00:
00]} 75. Kg1 {[%emt 0:00:24]} Qa1+ {[%emt 0:00:11]} 76. Kf2 {[%emt 0:00:07]}
Qa2+ {[%emt 0:00:11]} 77. Kf3 {[%emt 0:01:01]} Qf7+ {[%emt 0:00:16]} 78. Kg2 {
[%emt 0:00:11]} Qa2+ {[%emt 0:00:12]} 79. Kh3 {[%emt 0:00:09]} Qf7 {[%emt 0:00:
00]} 1/2-1/2

[Event "44th Chess Olympiad Women 2022"]
[Site "Chennai"]
[Date "2022.08.08"]
[Round "10.26"]
[White "Wafa, Shahenda"]
[Black "Khan, Nazrana"]
[Result "1-0"]
[WhiteElo "2115"]
[BlackElo "1829"]
[Annotator "NA RC"]
[PlyCount "61"]
[EventDate "2022.??.??"]
[TimeControl "60"]

1. e4 {[%emt 0:00:03]} c5 {[%emt 0:00:06]} 2. Nf3 {[%emt 0:00:08]} d6 {[%emt 0:
00:00]} 3. d4 {[%emt 0:00:10]} cxd4 {[%emt 0:00:25]} 4. Nxd4 {[%emt 0:00:07]}
Nf6 {[%emt 0:00:31]} 5. Nc3 {[%emt 0:00:08]} a6 {[%emt 0:01:00]} 6. Bg5 {
[%emt 0:00:33]} e6 {[%emt 0:00:50]} 7. f4 {[%emt 0:03:06]} Nbd7 {[%emt 0:03:16]
} 8. Qf3 {[%emt 0:00:29]} Be7 {[%emt 0:03:52]} 9. O-O-O {[%emt 0:00:28]} Qc7 {
[%emt 0:01:44]} 10. g4 {[%emt 0:06:16]} b5 {[%emt 0:02:24]} 11. Bxf6 {[%emt 0:
00:00]} Bxf6 {[%emt 0:04:46]} 12. Bxb5 {[%emt 0:09:06]} axb5 {[%emt 0:03:58]}
13. Ndxb5 {[%emt 0:00:10]} Qb8 {[%emt 0:05:08]} 14. Nxd6+ {[%emt 0:00:33]} Ke7
{[%emt 0:03:20]} 15. e5 {[%emt 0:02:37]} Bh4 {[%emt 0:02:03]} 16. g5 {[%emt 0:
00:00]} g6 {[%emt 0:02:17]} 17. Rhg1 {[%emt 0:09:56]} h5 {[%emt 0:06:40]} 18.
Rg2 {[%emt 0:10:51]} Rd8 {[%emt 0:09:52]} 19. Qh3 {[%emt 0:02:15]} Bb7 {
[%emt 0:03:43]} 20. Rgd2 {[%emt 0:09:59]} Bd5 {[%emt 0:06:32]} 21. Qxh4 {
[%emt 0:04:45]} Bxa2 {[%emt 0:01:03]} 22. Nxf7 {[%emt 0:08:04]} Bd5 {[%emt 0:
00:00]} 23. Rxd5 {[%emt 0:07:19]} Ra1+ {[%emt 0:02:22]} 24. Nb1 {[%emt 0:02:12]
} exd5 {[%emt 0:08:34]} 25. Nxd8 {[%emt 0:00:21]} Qa8 {[%emt 0:02:52]} 26. Qe1
{[%emt 0:03:51]} Kxd8 {[%emt 0:02:33]} 27. e6 {[%emt 0:01:52]} Nc5 {[%emt 0:00:
00]} 28. Qe5 {[%emt 0:01:12]} Qc6 {[%emt 0:08:32]} 29. Rxd5+ {[%emt 0:00:36]}
Ke8 {[%emt 0:01:24]} 30. Qh8+ {[%emt 0:00:11]} Ke7 {[%emt 0:00:36]} 31. Qf6+ {
[%emt 0:00:06]} 1-0

[Event "44th Chess Olympiad Women 2022"]
[Site "Chennai"]
[Date "2022.08.08"]
[Round "10.27"]
[White "Bacic, Kristina"]
[Black "Puuska, Heini"]
[Result "1-0"]
[WhiteElo "1866"]
[BlackElo "2010"]
[Annotator "NA RC"]
[PlyCount "67"]
[EventDate "2022.??.??"]
[TimeControl "60"]

1. d4 {[%emt 0:00:06]} d6 {[%emt 0:00:14]} 2. c4 {[%emt 0:00:13]} Nf6 {[%emt 0:
00:00]} 3. Nc3 {[%emt 0:00:11]} Nbd7 {[%emt 0:00:31]} 4. Nf3 {[%emt 0:00:30]}
e5 {[%emt 0:00:24]} 5. e3 {[%emt 0:02:00]} Be7 {[%emt 0:01:14]} 6. Be2 {
[%emt 0:00:24]} O-O {[%emt 0:00:42]} 7. O-O {[%emt 0:00:17]} c6 {[%emt 0:00:45]
} 8. b3 {[%emt 0:01:25]} h6 {[%emt 0:01:50]} 9. Bb2 {[%emt 0:00:55]} e4 {
[%emt 0:01:42]} 10. Nd2 {[%emt 0:01:20]} d5 {[%emt 0:00:20]} 11. f3 {[%emt 0:
00:00]} exf3 {[%emt 0:01:31]} 12. Bxf3 {[%emt 0:00:50]} Nb6 {[%emt 0:01:37]}
13. c5 {[%emt 0:04:24]} Nbd7 {[%emt 0:00:59]} 14. e4 {[%emt 0:00:11]} dxe4 {
[%emt 0:01:38]} 15. Ndxe4 {[%emt 0:01:43]} Nxe4 {[%emt 0:01:16]} 16. Nxe4 {
[%emt 0:01:31]} Nf6 {[%emt 0:01:23]} 17. Qc2 {[%emt 0:13:30]} Nxe4 {[%emt 0:00:
00]} 18. Bxe4 {[%emt 0:01:41]} Be6 {[%emt 0:01:04]} 19. Qf2 {[%emt 0:02:59]}
Bd5 {[%emt 0:04:24]} 20. Rae1 {[%emt 0:06:10]} Bxe4 {[%emt 0:04:25]} 21. Rxe4 {
[%emt 0:00:12]} Bf6 {[%emt 0:00:33]} 22. Rg4 {[%emt 0:00:45]} Kh8 {[%emt 0:00:
00]} 23. d5 {[%emt 0:05:18]} Bxb2 {[%emt 0:17:54]} 24. Qxb2 {[%emt 0:00:06]} f6
{[%emt 0:00:18]} 25. d6 {[%emt 0:01:57]} b6 {[%emt 0:01:29]} 26. b4 {[%emt 0:
00:00]} a5 {[%emt 0:02:01]} 27. a3 {[%emt 0:10:59]} axb4 {[%emt 0:00:22]} 28.
axb4 {[%emt 0:00:26]} bxc5 {[%emt 0:00:29]} 29. bxc5 {[%emt 0:00:10]} Qa5 {
[%emt 0:04:59]} 30. Qd4 {[%emt 0:04:17]} Rfe8 {[%emt 0:10:30]} 31. Rxf6 {
[%emt 0:10:05]} Re1+ {[%emt 0:00:27]} 32. Kf2 {[%emt 0:02:36]} Qa2+ {[%emt 0:
00:00]} 33. Kg3 {[%emt 0:02:41]} Ra7 {[%emt 0:19:26]} 34. Rf8+ {[%emt 0:02:37]}
1-0

[Event "44th Chess Olympiad Women 2022"]
[Site "Chennai"]
[Date "2022.08.08"]
[Round "10.27"]
[White "Milovic, Aleksandra"]
[Black "Nazarova, Anastasia"]
[Result "1-0"]
[WhiteElo "2129"]
[BlackElo "2208"]
[Annotator "NA RC"]
[PlyCount "51"]
[EventDate "2022.??.??"]
[TimeControl "60"]

1. d4 {[%emt 0:00:01]} Nf6 {[%emt 0:00:08]} 2. Nc3 {[%emt 0:00:06]} d5 {
[%emt 0:00:05]} 3. Bf4 {[%emt 0:00:23]} c6 {[%emt 0:00:03]} 4. e3 {[%emt 0:00:
00]} Bf5 {[%emt 0:00:04]} 5. Bd3 {[%emt 0:02:28]} e6 {[%emt 0:00:15]} 6. Nf3 {
[%emt 0:04:46]} Bd6 {[%emt 0:00:55]} 7. O-O {[%emt 0:01:47]} Qc7 {[%emt 0:00:
00]} 8. Bxd6 {[%emt 0:06:41]} Qxd6 {[%emt 0:00:14]} 9. Ne5 {[%emt 0:00:22]}
Nbd7 {[%emt 0:17:58]} 10. f4 {[%emt 0:00:28]} h5 {[%emt 0:00:11]} 11. h3 {
[%emt 0:06:43]} Qe7 {[%emt 0:05:49]} 12. Qe1 {[%emt 0:07:58]} h4 {[%emt 0:00:
00]} 13. b4 {[%emt 0:12:49]} O-O-O {[%emt 0:16:48]} 14. b5 {[%emt 0:10:14]} c5
{[%emt 0:00:43]} 15. Na4 {[%emt 0:00:37]} c4 {[%emt 0:07:54]} 16. Bxf5 {
[%emt 0:03:35]} exf5 {[%emt 0:00:05]} 17. Qa5 {[%emt 0:00:03]} Kb8 {[%emt 0:00:
00]} 18. Nc6+ {[%emt 0:05:51]} bxc6 {[%emt 0:00:06]} 19. bxc6 {[%emt 0:00:04]}
Nb6 {[%emt 0:02:24]} 20. Nxb6 {[%emt 0:00:45]} Qxe3+ {[%emt 0:09:12]} 21. Kh1 {
[%emt 0:00:52]} Qxd4 {[%emt 0:01:38]} 22. Rab1 {[%emt 0:16:54]} axb6 {[%emt 0:
00:00]} 23. Rxb6+ {[%emt 0:00:25]} Kc7 {[%emt 0:00:03]} 24. Rb7+ {[%emt 0:00:
00]} Kd6 {[%emt 0:00:18]} 25. Qc7+ {[%emt 0:00:00]} Kc5 {[%emt 0:00:09]} 26.
Qb6+ {[%emt 0:00:03]} 1-0